[Event "Blixt-SM 2025"]
[Site "Norrköping, Sweden"]
[Date "2025.09.26"]
[Round "6.8"]
[White "Bergdahl, Daniel"]
[Black "Sandberg, Lucas"]
[Result "0-1"]
[TimeControl "3 min + 2 sec/move"]
[WhiteElo "1864"]
[BlackElo "2268"]

1. e4 {[%clk 00:03:03]} c6 {[%clk 00:03:03]} {[%emt 00:00:02]} 2. d4 {[%clk
00:03:04]} g6 {[%clk 00:03:04]} 3. Nc3 {[%clk 00:03:04]} {[%emt 00:00:02]} Bg7
{[%clk 00:03:05]} 4. Nf3 {[%clk 00:03:04]} {[%emt 00:00:02]} d5 5. exd5 {[%clk
00:03:05]} cxd5 {[%clk 00:03:04]} {[%emt 00:00:04]} 6. Be3 {[%clk 00:03:05]}
Nf6 {[%clk 00:03:05]} 7. Bd3 {[%clk 00:03:05]} {[%emt 00:00:02]} O-O {[%clk
00:03:05]} {[%emt 00:00:02]} 8. O-O {[%clk 00:03:05]} {[%emt 00:00:02]} Nc6
{[%clk 00:03:04]} {[%emt 00:00:03]} 9. a3 {[%clk 00:03:01]} {[%emt 00:00:06]}
Bf5 {[%clk 00:02:56]} {[%emt 00:00:10]} 10. Bxf5 {[%clk 00:03:00]} gxf5 {[%clk
00:02:58]} 11. Bf4 {[%clk 00:02:43]} {[%emt 00:00:19]} Rc8 {[%clk 00:02:58]}
{[%emt 00:00:01]} 12. Ne5 {[%clk 00:02:41]} {[%emt 00:00:04]} e6 {[%clk
00:02:57]} {[%emt 00:00:03]} 13. f3 {[%clk 00:02:38]} {[%emt 00:00:05]} Qb6
{[%clk 00:02:57]} {[%emt 00:00:01]} 14. Nxc6 {[%clk 00:02:36]} {[%emt
00:00:06]} Rxc6 {[%clk 00:02:57]} {[%emt 00:00:02]} 15. Na4 {[%clk 00:02:36]}
{[%emt 00:00:01]} Qb5 {[%clk 00:02:52]} {[%emt 00:00:07]} 16. c3 {[%clk
00:02:02]} {[%emt 00:00:37]} b6 {[%clk 00:02:52]} {[%emt 00:00:01]} 17. Be5
{[%clk 00:01:53]} {[%emt 00:00:11]} Qa6 {[%clk 00:02:31]} {[%emt 00:00:23]} 18.
b3 {[%clk 00:01:47]} Qc8 {[%clk 00:02:30]} {[%emt 00:00:12]} 19. Qd2 {[%clk
00:01:46]} Nd7 {[%clk 00:02:22]} {[%emt 00:00:12]} 20. Bxg7 {[%clk 00:01:21]}
Kxg7 {[%clk 00:02:23]} 21. f4 {[%clk 00:01:21]} Nf6 {[%clk 00:02:22]} 22. Rac1
{[%clk 00:01:21]} Ne4 {[%clk 00:02:22]} 23. Qd3 {[%clk 00:01:21]} Qc7 {[%clk
00:02:22]} 24. b4 {[%clk 00:00:47]} {[%emt 00:01:26]} Rc8 {[%clk 00:02:12]}
{[%emt 00:00:04]} 25. Rf3 {[%clk 00:00:46]} {[%emt 00:00:03]} a5 {[%clk
00:01:56]} {[%emt 00:00:18]} 26. bxa5 {[%clk 00:00:28]} {[%emt 00:00:20]} bxa5
{[%clk 00:01:57]} {[%emt 00:00:01]} 27. Rh3 {[%clk 00:00:28]} {[%emt 00:00:01]}
Rc4 {[%clk 00:01:52]} {[%emt 00:00:08]} 28. Nc5 {[%clk 00:00:22]} {[%emt
00:00:08]} Rxc5 {[%clk 00:01:41]} {[%emt 00:00:13]} 29. dxc5 {[%clk 00:00:19]}
{[%emt 00:00:04]} Qxc5+ {[%clk 00:01:43]} 30. Qe3 {[%clk 00:00:20]} {[%emt
00:00:02]} d4 {[%clk 00:01:43]} {[%emt 00:00:02]} 31. Qd3 {[%clk 00:00:04]}
{[%emt 00:00:18]} dxc3+ {[%clk 00:01:43]} {[%emt 00:00:02]} 32. Re3 {[%clk
00:00:05]} Rd8 {[%clk 00:01:38]} {[%emt 00:00:08]} 33. Qe2 {[%clk 00:00:05]}
{[%emt 00:00:01]} Rd2 {[%clk 00:01:37]} {[%emt 00:00:03]} 34. Qf3 {[%clk
00:00:06]} Rf2 {[%clk 00:01:37]} {[%emt 00:00:02]} 35. Qxf2 {[%clk 00:00:05]}
{[%emt 00:00:04]} Nxf2 {[%clk 00:01:37]} 36. Kxf2 {[%clk 00:00:06]} {[%emt
00:00:01]} Qd4 {[%clk 00:01:31]} {[%emt 00:00:08]} 37. Kf3 {[%clk 00:00:05]}
{[%emt 00:00:03]} Qd5+ {[%clk 00:01:30]} {[%emt 00:00:04]} 38. Kg3 {[%clk
00:00:04]} {[%emt 00:00:02]} h5 {[%clk 00:01:10]} {[%emt 00:00:22]} 39. Rcxc3
{[%clk 00:00:05]} {[%emt 00:00:02]} Qd1 {[%clk 00:01:11]} 40. Rf3 {[%clk
00:00:05]} {[%emt 00:00:02]} Qe1+ {[%clk 00:01:11]} {[%emt 00:00:02]} 41. Kh3
{[%clk 00:00:06]} {[%emt 00:00:01]} Kf6 {[%clk 00:01:03]} {[%emt 00:00:10]} 42.
Rce3 {[%clk 00:00:07]} {[%emt 00:00:01]} Qc1 {[%clk 00:01:02]} {[%emt
00:00:02]} 43. Rg3 {[%clk 00:00:07]} {[%emt 00:00:02]} Qc7 {[%clk 00:01:00]}
{[%emt 00:00:04]} 44. Re5 {[%clk 00:00:07]} {[%emt 00:00:02]} Qc4 {[%clk
00:01:02]} 45. Rf3 {[%clk 00:00:05]} {[%emt 00:00:04]} Qa4 {[%clk 00:00:54]}
{[%emt 00:00:10]} 46. Ree3 {[%clk 00:00:06]} Qd4 {[%clk 00:00:53]} {[%emt
00:00:03]} 47. Rd3 {[%clk 00:00:06]} {[%emt 00:00:02]} Qa1 {[%clk 00:00:48]}
{[%emt 00:00:07]} 48. Rde3 {[%clk 00:00:07]} {[%emt 00:00:01]} Qd4 {[%clk
00:00:35]} {[%emt 00:00:16]} 49. Rd3 {[%clk 00:00:08]} Qa4 {[%clk 00:00:36]} 50.
Rde3 {[%clk 00:00:09]} {[%emt 00:00:02]} Kg6 {[%clk 00:00:36]} {[%emt
00:00:03]} 51. Rg3+ {[%emt 00:00:01]} Kh6 52. Rgf3 {[%clk 00:00:10]} {[%emt
00:00:01]} Kg7 {[%clk 00:00:35]} {[%emt 00:00:04]} 53. Rg3+ {[%clk 00:00:11]}
Kf8 {[%clk 00:00:37]} 54. Rgf3 {[%clk 00:00:12]} {[%emt 00:00:01]} Ke7 {[%clk
00:00:38]} 55. Rb3 {[%clk 00:00:12]} f6 {[%clk 00:00:35]} {[%emt 00:00:05]} 56.
Rb7+ {[%clk 00:00:12]} {[%emt 00:00:02]} Kd6 {[%clk 00:00:36]} 57. Rb6+ {[%clk
00:00:13]} Ke7 {[%clk 00:00:33]} {[%emt 00:00:05]} 58. Rbb3 {[%clk 00:00:11]}
{[%emt 00:00:04]} e5 {[%clk 00:00:33]} {[%emt 00:00:03]} 59. Rbe3 {[%clk
00:00:07]} {[%emt 00:00:05]} Kf7 {[%clk 00:00:33]} {[%emt 00:00:03]} 60. g3
{[%clk 00:00:04]} {[%emt 00:00:05]} e4 {[%clk 00:00:29]} {[%emt 00:00:06]} 61.
Rf2 {[%clk 00:00:04]} {[%emt 00:00:01]} Qd4 {[%clk 00:00:30]} {[%emt 00:00:01]}
62. Rfe2 {[%clk 00:00:05]} {[%emt 00:00:02]} Qd1 {[%clk 00:00:29]} {[%emt
00:00:03]} 63. Kh4 {[%clk 00:00:05]} Ke6 {[%clk 00:00:26]} {[%emt 00:00:06]} 64.
Kxh5 {[%clk 00:00:04]} {[%emt 00:00:02]} Qd8 {[%clk 00:00:22]} {[%emt
00:00:05]} 0-1

[Event "Blixt-SM 2025"]
[Site "Norrköping, Sweden"]
[Date "2025.09.26"]
[Round "8.4"]
[White "Bjorklund, Thomas"]
[Black "Tadjerbashi, Amir"]
[Result "1/2-1/2"]
[TimeControl "3 min + 2 sec/move"]
[WhiteElo "2103"]
[BlackElo "2235"]

1. e4 {[%clk 00:03:02]} {[%emt 00:00:01]} e5 {[%clk 00:03:04]} {[%emt
00:00:02]} 2. Nf3 {[%clk 00:03:03]} d6 {[%clk 00:03:05]} 3. Nc3 {[%clk
00:03:04]} c6 {[%clk 00:03:06]} {[%emt 00:00:01]} 4. d4 {[%clk 00:03:05]} Qc7
{[%clk 00:03:08]} 5. Be2 {[%clk 00:03:05]} {[%emt 00:00:02]} h6 {[%clk
00:03:08]} {[%emt 00:00:02]} 6. Be3 {[%clk 00:03:05]} {[%emt 00:00:02]} Nf6
{[%clk 00:03:10]} {[%emt 00:00:01]} 7. Qd2 {[%clk 00:03:05]} {[%emt 00:00:02]}
Be7 {[%clk 00:03:10]} 8. O-O-O {[%clk 00:03:05]} {[%emt 00:00:02]} Be6 {[%clk
00:03:08]} {[%emt 00:00:05]} 9. Kb1 {[%clk 00:03:06]} Nbd7 {[%clk 00:02:59]}
{[%emt 00:00:11]} 10. h3 {[%clk 00:03:01]} {[%emt 00:00:07]} Nb6 {[%clk
00:02:46]} {[%emt 00:00:15]} 11. g4 {[%clk 00:03:00]} {[%emt 00:00:02]} Nc4
{[%clk 00:02:44]} {[%emt 00:00:05]} 12. Bxc4 {[%clk 00:02:54]} {[%emt
00:00:08]} Bxc4 {[%clk 00:02:44]} {[%emt 00:00:02]} 13. dxe5 {[%clk 00:02:39]}
{[%emt 00:00:17]} dxe5 {[%clk 00:02:45]} {[%emt 00:00:01]} 14. g5 {[%clk
00:02:39]} {[%emt 00:00:02]} hxg5 {[%clk 00:02:43]} {[%emt 00:00:03]} 15. Nxg5
{[%clk 00:02:39]} {[%emt 00:00:03]} Bb4 {[%clk 00:02:04]} {[%emt 00:00:41]} 16.
a3 {[%clk 00:02:35]} {[%emt 00:00:06]} Be7 {[%clk 00:02:01]} {[%emt 00:00:05]}
17. f4 {[%clk 00:02:29]} {[%emt 00:00:07]} Rd8 {[%clk 00:01:39]} {[%emt
00:00:24]} 18. Qf2 {[%clk 00:02:28]} {[%emt 00:00:02]} b6 {[%clk 00:01:30]}
{[%emt 00:00:12]} 19. Rxd8+ {[%clk 00:02:28]} {[%emt 00:00:02]} Bxd8 {[%clk
00:01:31]} 20. fxe5 {[%clk 00:02:22]} {[%emt 00:00:08]} Qxe5 {[%clk 00:01:32]}
{[%emt 00:00:01]} 21. Rg1 {[%clk 00:02:01]} {[%emt 00:00:23]} Be7 {[%clk
00:01:08]} {[%emt 00:00:26]} 22. Bd4 {[%clk 00:01:57]} {[%emt 00:00:06]} Qa5
{[%clk 00:01:07]} {[%emt 00:00:03]} 23. e5 {[%clk 00:01:41]} {[%emt 00:00:18]}
Nh5 {[%clk 00:01:08]} {[%emt 00:00:01]} 24. b3 {[%clk 00:01:32]} {[%emt
00:00:10]} Bd5 {[%clk 00:01:01]} {[%emt 00:00:10]} 25. Nxd5 {[%clk 00:01:20]}
{[%emt 00:00:15]} Qxd5 {[%clk 00:01:00]} {[%emt 00:00:02]} 26. c4 {[%clk
00:01:16]} {[%emt 00:00:05]} Qd7 {[%clk 00:00:55]} {[%emt 00:00:08]} 27. Qxf7+
{[%clk 00:01:06]} {[%emt 00:00:12]} Kd8 {[%clk 00:00:56]} 28. Rd1 {[%clk
00:00:56]} {[%emt 00:00:12]} Kc8 {[%clk 00:00:57]} {[%emt 00:00:01]} 29. e6
{[%clk 00:00:49]} {[%emt 00:00:09]} Qd6 {[%clk 00:00:53]} {[%emt 00:00:06]} 30.
Ne4 {[%clk 00:00:32]} {[%emt 00:00:18]} Qd8 {[%clk 00:00:43]} {[%emt 00:00:13]}
31. Rd2 {[%clk 00:00:27]} {[%emt 00:00:08]} Qf8 {[%clk 00:00:44]} 32. Rf2
{[%clk 00:00:17]} {[%emt 00:00:11]} Qd8 {[%clk 00:00:36]} {[%emt 00:00:10]} 33.
Rd2 {[%clk 00:00:13]} {[%emt 00:00:06]} Qf8 {[%clk 00:00:35]} {[%emt 00:00:04]}
34. Rf2 {[%clk 00:00:14]} Qd8 {[%clk 00:00:23]} {[%emt 00:00:14]} 35. Rd2
{[%clk 00:00:15]} 1/2-1/2

[Event "Blixt-SM 2025"]
[Site "Norrköping, Sweden"]
[Date "2025.09.26"]
[Round "9.10"]
[White "Wernberg, Hugo"]
[Black "Wiklund, Johan"]
[Result "1-0"]
[TimeControl "3 min + 2 sec/move"]
[WhiteTitle "FM"]
[WhiteElo "2285"]
[BlackElo "1984"]

1. g3 {[%clk 00:03:02]} {[%emt 00:00:02]} g6 {[%clk 00:03:01]} {[%emt
00:00:03]} 2. Bg2 {[%clk 00:03:03]} {[%emt 00:00:01]} Bg7 {[%clk 00:03:03]} 3.
e4 {[%clk 00:03:04]} d6 {[%clk 00:03:03]} {[%emt 00:00:02]} 4. d4 {[%clk
00:03:05]} {[%emt 00:00:01]} Nf6 {[%clk 00:02:54]} {[%emt 00:00:11]} 5. Ne2
{[%clk 00:03:06]} O-O {[%clk 00:02:43]} {[%emt 00:00:13]} 6. O-O {[%clk
00:03:06]} {[%emt 00:00:02]} e5 {[%clk 00:02:37]} {[%emt 00:00:08]} 7. Nbc3
{[%clk 00:03:07]} Nc6 {[%clk 00:02:29]} {[%emt 00:00:10]} 8. d5 {[%clk
00:03:06]} {[%emt 00:00:04]} Ne7 {[%clk 00:02:07]} {[%emt 00:00:24]} 9. h3
{[%clk 00:02:56]} {[%emt 00:00:11]} a6 {[%clk 00:01:59]} {[%emt 00:00:10]} 10.
a4 {[%clk 00:02:55]} {[%emt 00:00:04]} Bd7 {[%clk 00:01:59]} {[%emt 00:00:03]}
11. Kh2 {[%clk 00:02:31]} {[%emt 00:00:25]} b5 {[%clk 00:01:54]} {[%emt
00:00:07]} 12. a5 {[%clk 00:02:04]} {[%emt 00:00:28]} Ne8 {[%clk 00:01:36]}
{[%emt 00:00:21]} 13. f4 {[%clk 00:01:56]} {[%emt 00:00:10]} f5 {[%clk
00:01:35]} {[%emt 00:00:04]} 14. fxe5 {[%clk 00:01:53]} {[%emt 00:00:04]} Bxe5
{[%clk 00:01:34]} {[%emt 00:00:03]} 15. Bh6 {[%clk 00:01:49]} {[%emt 00:00:05]}
Rf7 {[%clk 00:01:25]} {[%emt 00:00:12]} 16. Nd4 {[%clk 00:01:45]} {[%emt
00:00:06]} Ng7 {[%clk 00:01:05]} {[%emt 00:00:22]} 17. Bxg7 {[%clk 00:01:00]}
{[%emt 00:00:46]} Kxg7 {[%clk 00:00:59]} {[%emt 00:00:09]} 18. Ne6+ {[%clk
00:00:59]} {[%emt 00:00:03]} Bxe6 {[%clk 00:00:59]} {[%emt 00:00:03]} 19. dxe6
{[%clk 00:01:00]} {[%emt 00:00:01]} Rf8 {[%clk 00:00:48]} {[%emt 00:00:12]} 20.
exf5 {[%clk 00:00:30]} {[%emt 00:00:32]} Nxf5 {[%clk 00:00:49]} 21. Rxf5 Rxf5
{[%clk 00:00:44]} 22. e7 {[%clk 00:00:32]} {[%emt 00:00:01]} Qe8 {[%clk
00:00:29]} {[%emt 00:00:17]} 23. Bxa8 {[%clk 00:00:17]} {[%emt 00:00:17]} Qxa8
{[%clk 00:00:30]} 24. Nd5 {[%clk 00:00:12]} {[%emt 00:00:07]} Bxg3+ {[%clk
00:00:20]} {[%emt 00:00:13]} 25. Kxg3 {[%clk 00:00:12]} {[%emt 00:00:02]} Rxd5
{[%clk 00:00:19]} {[%emt 00:00:04]} 26. Qxd5 {[%clk 00:00:07]} {[%emt
00:00:06]} Qxd5 {[%clk 00:00:20]} 27. e8=Q {[%clk 00:00:08]} {[%emt 00:00:02]}
Qg5+ {[%clk 00:00:20]} {[%emt 00:00:01]} 28. Kf3 {[%clk 00:00:07]} {[%emt
00:00:02]} Qf5+ {[%clk 00:00:19]} {[%emt 00:00:04]} 29. Ke3 {[%clk 00:00:08]}
{[%emt 00:00:01]} Qxh3+ {[%clk 00:00:10]} {[%emt 00:00:11]} 30. Kd2 {[%clk
00:00:08]} {[%emt 00:00:01]} Qf5 {[%clk 00:00:07]} {[%emt 00:00:06]} 31. Re1
{[%clk 00:00:08]} {[%emt 00:00:02]} Qf4+ {[%clk 00:00:08]} 32. Qe3 {[%clk
00:00:09]} {[%emt 00:00:01]} Qb4+ {[%clk 00:00:08]} {[%emt 00:00:02]} 33. Qc3+
{[%emt 00:00:42]} 1-0

[Event "Blixt-SM 2025"]
[Site "Norrköping, Sweden"]
[Date "2025.09.26"]
[Round "11.6"]
[White "Bohman Karlholm, Adrian"]
[Black "Tadjerbashi, Amir"]
[Result "1/2-1/2"]
[TimeControl "3 min + 2 sec/move"]
[WhiteElo "2102"]
[BlackElo "2235"]

1. d4 {[%clk 00:03:03]} d5 {[%clk 00:03:04]} {[%emt 00:00:01]} 2. c4 {[%clk
00:03:03]} e6 {[%clk 00:03:04]} {[%emt 00:00:02]} 3. Nc3 {[%clk 00:03:04]}
{[%emt 00:00:01]} c6 {[%clk 00:03:05]} 4. e4 {[%clk 00:03:04]} {[%emt
00:00:02]} Bb4 {[%clk 00:03:07]} 5. cxd5 {[%clk 00:03:01]} {[%emt 00:00:05]}
exd5 {[%clk 00:03:04]} {[%emt 00:00:04]} 6. exd5 {[%clk 00:02:55]} {[%emt
00:00:08]} Qxd5 {[%clk 00:03:02]} {[%emt 00:00:04]} 7. Nf3 {[%clk 00:02:51]}
{[%emt 00:00:06]} Bg4 {[%clk 00:02:50]} {[%emt 00:00:14]} 8. Be2 {[%clk
00:02:51]} {[%emt 00:00:02]} Nf6 {[%clk 00:02:02]} {[%emt 00:00:50]} 9. a3
{[%clk 00:02:51]} {[%emt 00:00:02]} Qa5 {[%clk 00:01:52]} {[%emt 00:00:13]} 10.
Bd2 {[%clk 00:02:41]} {[%emt 00:00:11]} Be7 {[%clk 00:01:53]} 11. Ne5 {[%clk
00:02:32]} {[%emt 00:00:11]} Bxe2 {[%clk 00:01:47]} {[%emt 00:00:09]} 12. Qxe2
{[%clk 00:02:32]} {[%emt 00:00:02]} Qd8 {[%clk 00:01:48]} 13. Be3 {[%clk
00:02:07]} {[%emt 00:00:27]} O-O {[%clk 00:01:48]} {[%emt 00:00:02]} 14. O-O
{[%clk 00:02:07]} {[%emt 00:00:02]} Nbd7 {[%clk 00:01:42]} {[%emt 00:00:08]} 15.
Rad1 {[%clk 00:02:04]} {[%emt 00:00:05]} Nb6 {[%clk 00:01:44]} {[%emt
00:00:01]} 16. Bg5 {[%clk 00:01:55]} {[%emt 00:00:10]} Nfd5 {[%clk 00:01:39]}
{[%emt 00:00:07]} 17. Bxe7 {[%clk 00:01:51]} {[%emt 00:00:05]} Qxe7 {[%clk
00:01:40]} 18. Rfe1 {[%clk 00:01:42]} {[%emt 00:00:11]} Rfe8 {[%clk 00:01:39]}
{[%emt 00:00:04]} 19. Qf3 {[%clk 00:01:39]} {[%emt 00:00:04]} f6 {[%clk
00:01:37]} {[%emt 00:00:05]} 20. Nd3 {[%clk 00:01:34]} {[%emt 00:00:07]} Qd6
{[%clk 00:01:29]} {[%emt 00:00:10]} 21. Nc5 {[%clk 00:01:34]} {[%emt 00:00:02]}
Re7 {[%clk 00:01:26]} {[%emt 00:00:06]} 22. N3e4 {[%clk 00:01:22]} {[%emt
00:00:13]} Qc7 {[%clk 00:01:26]} {[%emt 00:00:02]} 23. Ng3 {[%clk 00:01:18]}
{[%emt 00:00:06]} Rae8 {[%clk 00:01:26]} {[%emt 00:00:03]} 24. Rxe7 {[%clk
00:01:17]} {[%emt 00:00:03]} Qxe7 {[%clk 00:01:26]} {[%emt 00:00:03]} 25. h4
{[%clk 00:01:14]} {[%emt 00:00:03]} g6 {[%clk 00:01:17]} {[%emt 00:00:13]} 26.
h5 {[%clk 00:01:14]} {[%emt 00:00:01]} Kf7 {[%clk 00:00:34]} {[%emt 00:00:45]}
27. Qg4 {[%clk 00:01:06]} {[%emt 00:00:09]} Nc4 {[%clk 00:00:16]} {[%emt
00:00:21]} 28. b3 {[%clk 00:00:51]} {[%emt 00:00:18]} Nd6 {[%clk 00:00:17]}
{[%emt 00:00:02]} 29. hxg6+ hxg6 {[%clk 00:00:18]} 30. Qh4 {[%clk 00:00:43]}
{[%emt 00:00:02]} Kg7 {[%clk 00:00:19]} {[%emt 00:00:02]} 31. Nd3 {[%clk
00:00:24]} {[%emt 00:00:20]} f5 {[%clk 00:00:15]} {[%emt 00:00:07]} 32. Qxe7+
{[%clk 00:00:22]} {[%emt 00:00:03]} Rxe7 {[%clk 00:00:16]} 33. Ne5 {[%clk
00:00:23]} {[%emt 00:00:01]} Nf7 {[%clk 00:00:14]} {[%emt 00:00:04]} 34. Nc4
{[%clk 00:00:11]} {[%emt 00:00:14]} Nf4 {[%clk 00:00:12]} {[%emt 00:00:04]} 35.
Kf1 {[%clk 00:00:12]} {[%emt 00:00:01]} Rd7 {[%clk 00:00:10]} {[%emt 00:00:04]}
36. Ne2 {[%clk 00:00:12]} {[%emt 00:00:02]} Nd5 {[%clk 00:00:09]} {[%emt
00:00:03]} 37. g3 {[%clk 00:00:11]} {[%emt 00:00:03]} Ng5 {[%clk 00:00:10]}
{[%emt 00:00:01]} 38. Ne5 {[%clk 00:00:11]} {[%emt 00:00:03]} Re7 {[%clk
00:00:11]} 39. Kg2 {[%clk 00:00:06]} {[%emt 00:00:07]} Nf7 {[%clk 00:00:10]}
{[%emt 00:00:04]} 40. Nxf7 {[%clk 00:00:04]} {[%emt 00:00:04]} Rxe2 {[%clk
00:00:07]} {[%emt 00:00:04]} 41. Ne5 {[%clk 00:00:04]} {[%emt 00:00:01]} Ne3+
{[%clk 00:00:07]} {[%emt 00:00:03]} 42. Kf3 {[%clk 00:00:04]} {[%emt 00:00:02]}
Nxd1 {[%clk 00:00:08]} {[%emt 00:00:02]} 43. Kxe2 {[%clk 00:00:05]} Nc3+ {[%clk
00:00:09]} 44. Kd3 {[%clk 00:00:06]} Nd5 {[%clk 00:00:10]} 45. f4 {[%clk
00:00:05]} {[%emt 00:00:03]} Kf6 {[%clk 00:00:09]} {[%emt 00:00:03]} 46. Kc4
{[%clk 00:00:05]} Ne3+ {[%clk 00:00:08]} {[%emt 00:00:05]} 47. Kd3 {[%clk
00:00:06]} Nf1 {[%clk 00:00:06]} {[%emt 00:00:04]} 48. Nc4 {[%clk 00:00:04]}
{[%emt 00:00:03]} Nxg3 {[%clk 00:00:06]} {[%emt 00:00:03]} 49. Nd6 {[%clk
00:00:06]} b6 {[%clk 00:00:07]} {[%emt 00:00:01]} 50. Nc8 {[%clk 00:00:07]} Nh5
{[%clk 00:00:07]} {[%emt 00:00:01]} 51. Ke3 {[%clk 00:00:08]} Ke6 {[%clk
00:00:05]} {[%emt 00:00:05]} 52. Nxa7 {[%clk 00:00:08]} {[%emt 00:00:01]} Kd7
{[%clk 00:00:06]} {[%emt 00:00:01]} 53. b4 {[%clk 00:00:09]} {[%emt 00:00:02]}
b5 {[%clk 00:00:07]} 54. d5 {[%clk 00:00:08]} {[%emt 00:00:03]} cxd5 {[%clk
00:00:08]} 55. Nxb5 {[%clk 00:00:09]} {[%emt 00:00:02]} Kc6 {[%clk 00:00:08]}
56. Nc3 {[%clk 00:00:10]} {[%emt 00:00:02]} d4+ {[%clk 00:00:06]} {[%emt
00:00:04]} 57. Kxd4 {[%clk 00:00:10]} {[%emt 00:00:01]} Nxf4 {[%clk 00:00:07]}
58. Ke5 {[%clk 00:00:10]} {[%emt 00:00:01]} Nd3+ {[%clk 00:00:08]} {[%emt
00:00:02]} 59. Kf6 {[%clk 00:00:11]} {[%emt 00:00:02]} f4 {[%clk 00:00:09]}
{[%emt 00:00:01]} 60. Kxg6 {[%clk 00:00:09]} {[%emt 00:00:03]} f3 {[%clk
00:00:10]} 61. Ne4 {[%clk 00:00:10]} Kd5 {[%clk 00:00:09]} {[%emt 00:00:04]} 62.
Ng3 {[%clk 00:00:11]} {[%emt 00:00:01]} f2 {[%clk 00:00:09]} {[%emt 00:00:02]}
63. Kf5 {[%clk 00:00:11]} {[%emt 00:00:02]} Kd4 {[%clk 00:00:10]} {[%emt
00:00:01]} 64. b5 {[%clk 00:00:10]} {[%emt 00:00:03]} Kc5 {[%clk 00:00:08]}
{[%emt 00:00:04]} 65. Ke4 {[%clk 00:00:11]} {[%emt 00:00:01]} Nb2 {[%clk
00:00:07]} {[%emt 00:00:04]} 66. Kf3 {[%clk 00:00:08]} {[%emt 00:00:03]} Nd3
{[%clk 00:00:05]} {[%emt 00:00:04]} 67. Ke2 {[%clk 00:00:08]} {[%emt 00:00:03]}
Ne5 {[%clk 00:00:06]} {[%emt 00:00:02]} 68. a4 {[%clk 00:00:09]} {[%emt
00:00:02]} Kb4 {[%clk 00:00:06]} {[%emt 00:00:01]} 69. b6 {[%clk 00:00:09]}
{[%emt 00:00:02]} Ka5 {[%clk 00:00:07]} 70. b7 {[%clk 00:00:09]} {[%emt
00:00:02]} Nc6 {[%clk 00:00:09]} 71. Nf5 {[%clk 00:00:09]} {[%emt 00:00:03]}
Ka6 {[%clk 00:00:10]} {[%emt 00:00:01]} 72. Nd4 {[%clk 00:00:09]} {[%emt
00:00:02]} Kxb7 {[%clk 00:00:11]} 73. Nxc6 {[%clk 00:00:09]} Kxc6 {[%clk
00:00:12]} {[%emt 00:00:01]} 74. Kxf2 {[%clk 00:00:10]} Kb6 {[%clk 00:00:14]}
75. Ke2 {[%clk 00:00:11]} Ka5 {[%clk 00:00:16]} 76. Kd2 {[%clk 00:00:12]} Kxa4
1/2-1/2

[ePGN "0.1;DGT LiveChess/2.2.7"]

[Event "Blixt-SM 2025"]
[Site "Norrköping, Sweden"]
[Date "2025.09.26"]
[Round "2.1"]
[White "Seo, Jung Min"]
[Black "Ostling, Hakan"]
[Result "1-0"]
[TimeControl "3 min + 2 sec/move"]
[WhiteTitle "IM"]
[WhiteElo "2480"]
[BlackElo "2117"]

1. e4 {[%clk 00:03:04]} {[%emt 00:04:09]} g6 {[%clk 00:03:04]} 2. d4 {[%emt
00:00:02]} Bg7 3. c4 d6 4. Nc3 {[%clk 00:03:06]} Nf6 {[%clk 00:03:08]} 5. f3
{[%clk 00:03:04]} {[%emt 00:00:04]} O-O {[%clk 00:03:08]} {[%emt 00:00:03]} 6.
Be3 {[%clk 00:03:03]} {[%emt 00:00:03]} e5 {[%clk 00:03:05]} {[%emt 00:00:05]}
7. d5 {[%clk 00:03:03]} {[%emt 00:00:02]} c6 {[%clk 00:03:02]} {[%emt
00:00:05]} 8. Nge2 {[%clk 00:02:58]} {[%emt 00:00:06]} Na6 {[%clk 00:02:55]}
{[%emt 00:00:09]} 9. Ng3 {[%clk 00:02:57]} {[%emt 00:00:02]} cxd5 {[%clk
00:02:51]} {[%emt 00:00:07]} 10. cxd5 {[%clk 00:02:57]} Nc5 {[%clk 00:02:50]}
{[%emt 00:00:04]} 11. b4 {[%clk 00:02:46]} {[%emt 00:00:13]} Ncd7 {[%clk
00:02:50]} {[%emt 00:00:02]} 12. Bd3 {[%emt 00:00:02]} a6 13. O-O {[%clk
00:02:42]} {[%emt 00:00:05]} h5 {[%clk 00:02:41]} {[%emt 00:00:13]} 14. Nge2
{[%clk 00:02:36]} {[%emt 00:00:07]} Kh7 {[%clk 00:02:38]} {[%emt 00:00:06]} 15.
a4 {[%clk 00:02:09]} {[%emt 00:00:29]} b6 {[%clk 00:02:23]} {[%emt 00:00:17]}
16. a5 {[%clk 00:02:02]} {[%emt 00:00:10]} b5 {[%clk 00:02:24]} 17. Qd2 {[%clk
00:02:00]} {[%emt 00:00:04]} Ng8 {[%clk 00:02:25]} {[%emt 00:00:01]} 18. Rac1
{[%clk 00:01:56]} {[%emt 00:00:06]} Bh6 {[%clk 00:02:19]} {[%emt 00:00:07]} 19.
Nd1 {[%clk 00:01:52]} {[%emt 00:00:06]} f5 {[%clk 00:02:09]} {[%emt 00:00:13]}
20. exf5 gxf5 {[%clk 00:02:09]} 21. f4 {[%clk 00:01:29]} {[%emt 00:00:10]} e4
{[%clk 00:02:01]} {[%emt 00:00:11]} 22. Bb1 {[%clk 00:01:30]} {[%emt 00:00:01]}
Ngf6 {[%clk 00:01:53]} {[%emt 00:00:10]} 23. Nd4 {[%clk 00:01:30]} {[%emt
00:00:02]} Nb8 {[%clk 00:01:34]} {[%emt 00:00:21]} 24. Ne6 {[%clk 00:01:19]}
{[%emt 00:00:13]} Bxe6 {[%clk 00:01:33]} {[%emt 00:00:03]} 25. dxe6 {[%clk
00:01:20]} Qe7 {[%clk 00:01:26]} {[%emt 00:00:09]} 26. Ba2 {[%clk 00:01:21]}
Ng4 {[%clk 00:01:01]} {[%emt 00:00:27]} 27. h3 {[%clk 00:01:13]} {[%emt
00:00:10]} Nxe3 {[%clk 00:01:01]} {[%emt 00:00:02]} 28. Nxe3 {[%clk 00:01:13]}
Ra7 {[%clk 00:00:56]} {[%emt 00:00:08]} 29. Qd5 {[%clk 00:01:08]} {[%emt
00:00:06]} Qf6 {[%clk 00:00:35]} {[%emt 00:00:23]} 30. Qxd6 {[%clk 00:00:52]}
{[%emt 00:00:18]} Re7 {[%clk 00:00:20]} {[%emt 00:00:18]} 31. Nd5 {[%clk
00:00:47]} {[%emt 00:00:07]} Qd4+ {[%clk 00:00:20]} {[%emt 00:00:01]} 32. Kh1
{[%clk 00:00:48]} Rg7 {[%emt 00:00:07]} 33. Qxf8 {[%clk 00:00:42]} {[%emt
00:00:08]} Rxg2 {[%clk 00:00:12]} {[%emt 00:00:07]} 34. Qxf5+ {[%clk 00:00:38]}
{[%emt 00:00:06]} Rg6 {[%clk 00:00:11]} {[%emt 00:00:03]} 35. Rg1 {[%clk
00:00:32]} {[%emt 00:00:08]} 1-0